lending/lending_fUSD_20240710
["ID","MTS","AMOUNT","RATE_DAILY","PERIOD"]
[331606030,1720578733384,-500.0,0.00014048,2]
[331606031,1720578733394,-500.0,0.00014048,2]
[331606032,1720578733404,-500.0,0.00014048,2]
[331606033,1720578733413,-2317.96,0.00014048,2]
[331606034,1720578733424,-2337.29,0.00014048,2]
[331606035,1720578733434,-1041.58,0.00014048,2]
[331606036,1720578733443,-500.0,0.00014048,2]
[331606037,1720578733453,-500.0,0.00014048,2]
[331606038,1720578733463,-968.21,0.00014048,2]
[331606039,1720578733473,-2586.94,0.00014048,2]
[331606040,1720578733483,-1035.93,0.00014048,2]
[331606041,1720578733493,-500.0,0.00014048,2]
[331606042,1720578733645,-1553.64,0.00014048,2]
[331606043,1720578733655,-2080.31,0.00014048,2]
[331606044,1720578733664,-502.59,0.00014048,2]
[331606045,1720578733673,-500.0,0.00014048,2]
[331606046,1720578733683,-737.45,0.00014048,2]
[331606047,1720578733693,-302.98356786,0.00014048,2]
[331606048,1720578733703,-500.0,0.00014048,2]
[331606049,1720578733712,-2112.92,0.00014048,2]
[331606050,1720578733721,-1923.02,0.00014048,2]
[331606051,1720578733731,-4380.69,0.00014048,2]
[331606052,1720578733740,-892.74,0.00014048,2]
[331606053,1720578733750,-500.0,0.00014048,2]
[331606054,1720578733759,-500.0,0.00014048,2]
[331606055,1720578733768,-500.0,0.00014048,2]
[331606056,1720578733778,-500.0,0.00014048,2]
[331606057,1720578733787,-1529.72,0.00014048,2]
[331606058,1720578733797,-500.0,0.00014048,2]
[331606059,1720578733806,-855.14,0.00014048,2]
[331606060,1720578733815,-500.0,0.00014048,2]
[331606061,1720578733826,-3718.91,0.00014048,2]
[331606062,1720578733835,-740.92,0.00014048,2]
[331606063,1720578733844,-340.42466443,0.00014048,2]
[331606064,1720578733854,-500.0,0.00014048,2]
[331606065,1720578733866,-575.55953628,0.00014048,2]
[331606066,1720578733877,-500.0,0.00014048,2]
[331606067,1720578733887,-3238.09,0.00014048,2]
[331606068,1720578733896,-609.73,0.00014048,2]
[331606069,1720578733907,-1002.12,0.00014048,2]
[331606070,1720578733916,-346.04706255,0.00014048,2]
[331606071,1720578733926,-651.55,0.00014048,2]
[331606072,1720578733936,-500.0,0.00014048,2]
[331606073,1720578733945,-500.0,0.00014048,2]
[331606074,1720578733954,-980.41,0.00014048,2]
[331606075,1720578733963,-3990.01,0.00014048,2]
[331606076,1720578733973,-500.0,0.00014048,2]
[331606077,1720578733982,-1839.51,0.00014048,2]
[331606078,1720578733991,-500.0,0.00014048,2]
[331606079,1720578734001,-4957.69,0.00014048,2]
[331606080,1720578734010,-1974.57,0.00014048,2]
[331606081,1720578734021,-500.0,0.00014048,2]
[331606082,1720578734030,-1500.49,0.00014048,2]
[331606083,1720578734040,-952.07,0.00014048,2]
[331606084,1720578734049,-500.0,0.00014048,2]
[331606085,1720578734058,-500.0,0.00014048,2]
[331606086,1720578734068,-699.28,0.00014048,2]
[331606087,1720578734077,-500.0,0.00014048,2]
[331606088,1720578734086,-658.29,0.00014048,2]
[331606089,1720578734096,-500.0,0.00014048,2]
[331606090,1720578734105,-500.0,0.00014048,2]
[331606091,1720578734114,-709.87,0.00014048,2]
[331606092,1720578734123,-1755.69,0.00014048,2]
[331606093,1720578734132,-329.64085325,0.00014048,2]
[331606094,1720578734143,-500.0,0.00014048,2]
[331606095,1720578734152,-1145.48,0.00014048,2]
[331606096,1720578734162,-944.07,0.00014048,2]
[331606097,1720578734172,-2293.08,0.00014048,2]
[331606098,1720578734181,-500.0,0.00014048,2]
[331606099,1720578734190,-500.0,0.00014048,2]
[331606100,1720578734200,-635.26,0.00014048,2]
[331606101,1720578734209,-780.96,0.00014048,2]
[331606102,1720578734219,-500.0,0.00014048,2]
[331606103,1720578734229,-974.57,0.00014048,2]
[331606104,1720578734238,-500.0,0.00014048,2]
[331606105,1720578734248,-879.8,0.00014048,2]
[331606106,1720578734258,-5378.78,0.00014048,2]
[331606107,1720578734268,-5568.96,0.00014048,2]
[331606108,1720578734277,-500.0,0.00014048,2]
[331606109,1720578734287,-973.02,0.00014048,2]
[331606110,1720578734296,-500.0,0.00014048,2]
[331606111,1720578734305,-500.0,0.00014048,2]
[331606112,1720578734315,-2089.34,0.00014048,2]
[331606113,1720578734324,-1639.39,0.00014048,2]
[331606114,1720578734333,-500.0,0.00014048,2]
[331606115,1720578734343,-2173.64,0.00014048,2]
[331606116,1720578734352,-500.0,0.00014048,2]
[331606117,1720578734361,-1556.62,0.00014048,2]
[331606118,1720578734371,-500.0,0.00014048,2]
[331606119,1720578734380,-1651.76,0.00014048,2]
[331606120,1720578734389,-500.0,0.00014048,2]
[331606121,1720578734398,-3794.84,0.00014048,2]
[331606122,1720578734407,-500.0,0.00014048,2]
[331606123,1720578734417,-3056.06,0.00014048,2]
[331606124,1720578734426,-3164.82,0.00014048,2]
[331606125,1720578734435,-1116.11,0.00014048,2]
[331606126,1720578734445,-701.8,0.00014048,2]
[331606127,1720578734454,-1628.14,0.00014048,2]
[331606128,1720578734463,-2832.39,0.00014048,2]
[331606129,1720578734472,-1057.08,0.00014048,2]
[331606130,1720578734481,-500.0,0.00014048,2]
[331606131,1720578734490,-5259.94,0.00014048,2]
[331606132,1720578734499,-500.0,0.00014048,2]
[331606133,1720578734509,-1394.34,0.00014048,2]
[331606134,1720578734519,-500.0,0.00014048,2]
[331606135,1720578734528,-3723.23,0.00014048,2]
[331606136,1720578734537,-1428.64,0.00014048,2]
[331606137,1720578734546,-500.0,0.00014048,2]
[331606138,1720578734556,-500.0,0.00014048,2]
[331606139,1720578734566,-500.0,0.00014048,2]
[331606140,1720578734574,-500.0,0.00014048,2]
[331606141,1720578734583,-1637.49,0.00014048,2]
[331606142,1720578734593,-500.0,0.00014048,2]
[331606143,1720578734603,-1289.83,0.00014048,2]
[331606144,1720578734614,-4028.33,0.00014048,2]
[331606145,1720578734623,-500.0,0.00014048,2]
[331606146,1720578734632,-2993.84,0.00014048,2]
[331606147,1720578734641,-500.0,0.00014048,2]
[331606148,1720578734650,-2832.69,0.00014048,2]
[331606149,1720578734660,-500.0,0.00014048,2]
[331606150,1720578734669,-1071.85,0.00014048,2]
[331606151,1720578734678,-500.0,0.00014048,2]
[331606152,1720578734688,-1916.52,0.00014048,2]
[331606153,1720578734698,-3236.91,0.00014048,2]
[331606154,1720578734707,-1308.49,0.00014048,2]
[331606155,1720578734716,-500.0,0.00014048,2]
[331606156,1720578734725,-2241.04,0.00014048,2]
[331606157,1720578734735,-500.0,0.00014048,2]
[331606158,1720578734744,-666.78,0.00014048,2]
[331606159,1720578734753,-500.0,0.00014048,2]
[331606160,1720578734763,-2619.25,0.00014048,2]
[331606161,1720578734772,-1165.49,0.00014048,2]
[331606162,1720578734781,-607.01,0.00014048,2]
[331606163,1720578734791,-796.74,0.00014048,2]
[331606164,1720578734800,-2550.62,0.00014048,2]
[331606165,1720578734809,-1719.47,0.00014048,2]
[331606166,1720578734819,-1535.65,0.00014048,2]
[331606167,1720578734828,-244.24875739,0.00014048,2]
[331606168,1720578734838,-500.0,0.00014048,2]
[331606169,1720578734847,-1593.91,0.00014048,2]
[331606170,1720578734856,-635.62,0.00014048,2]
[331606171,1720578734867,-500.0,0.00014048,2]
[331606172,1720578734878,-500.0,0.00014048,2]
[331606173,1720578734887,-270.11037512,0.00014048,2]
[331606174,1720578734896,-3309.42,0.00014048,2]
[331606175,1720578734906,-500.0,0.00014048,2]
[331606176,1720578734915,-851.82,0.00014048,2]
[331606177,1720578734925,-1134.24,0.00014048,2]
[331606178,1720578734935,-2211.54,0.00014048,2]
[331606179,1720578734944,-1623.1,0.00014048,2]
[331606180,1720578734954,-823.14,0.00014048,2]
[331606181,1720578734964,-2181.32,0.00014048,2]
[331606182,1720578734973,-3205.17,0.00014048,2]
[331606183,1720578734983,-1829.83,0.00014048,2]
[331606184,1720578734993,-200.13,0.00014048,2]
[331606185,1720578735003,-751.82,0.00014048,2]
[331606186,1720578735013,-558.55,0.00014048,2]
[331606187,1720578735022,-1952.3,0.00014048,2]
[331606188,1720578735032,-2070.44,0.00014048,2]
[331606189,1720578735042,-242.07585758,0.00014048,2]
[331606190,1720578735051,-500.0,0.00014048,2]
[331606191,1720578735060,-3572.72,0.00014048,2]
[331606192,1720578735071,-500.0,0.00014048,2]
[331606193,1720578735080,-500.0,0.00014048,2]
[331606194,1720578735089,-1170.3,0.00014048,2]
[331606195,1720578735099,-952.39,0.00014048,2]
[331606196,1720578735108,-500.0,0.00014048,2]
[331606197,1720578735119,-4228.87,0.00014048,2]
[331606198,1720578735128,-500.0,0.00014048,2]
[331606199,1720578735139,-916.36,0.00014048,2]
[331606200,1720578735149,-639.17,0.00014048,2]
[331606201,1720578735158,-500.0,0.00014048,2]
[331606202,1720578735168,-2319.44,0.00014048,2]
[331606203,1720578735178,-500.0,0.00014048,2]
[331606204,1720578735187,-2105.71,0.00014048,2]
[331606205,1720578735197,-500.0,0.00014048,2]
[331606206,1720578735206,-747.15,0.00014048,2]
[331606207,1720578735215,-1839.06,0.00014048,2]
[331606208,1720578735225,-5219.39,0.00014048,2]
[331606209,1720578735235,-931.18,0.00014048,2]
[331606210,1720578735244,-553.43,0.00014048,2]
[331606211,1720578735254,-623.84,0.00014048,2]
[331606212,1720578735263,-500.0,0.00014048,2]
[331606213,1720578735273,-2886.6,0.00014048,2]
[331606214,1720578735282,-3728.58,0.00014048,2]
[331606215,1720578735292,-796.99,0.00014048,2]
[331606216,1720578735301,-560.29289982,0.00014048,2]
[331606217,1720578735310,-539.23,0.00014048,2]
[331606218,1720578735320,-4577.06,0.00014048,2]
[331606219,1720578735329,-5476.03,0.00014048,2]
[331606220,1720578735339,-1872.17,0.00014048,2]
[331606221,1720578735348,-500.0,0.00014048,2]
[331606222,1720578735358,-868.45,0.00014048,2]
[331606223,1720578735368,-1648.09,0.00014048,2]
[331606224,1720578735378,-1219.17,0.00014048,2]
[331606225,1720578735388,-500.0,0.00014048,2]
[331606226,1720578735398,-655.24,0.00014048,2]
[331606227,1720578735408,-5498.87,0.00014048,2]
[331606228,1720578735417,-500.0,0.00014048,2]
[331606229,1720578735427,-1260.98,0.00014048,2]
[331606230,1720578735436,-500.0,0.00014048,2]
[331606231,1720578735446,-578.76,0.00014048,2]
[331606232,1720578735455,-500.0,0.00014048,2]
[331606233,1720578735464,-777.75,0.00014048,2]
[331606234,1720578735474,-1323.41,0.00014048,2]
[331606235,1720578735484,-1207.34,0.00014048,2]
[331606236,1720578735493,-500.0,0.00014048,2]
[331606237,1720578735502,-1414.19,0.00014048,2]
[331606238,1720578735512,-599.32,0.00014048,2]
[331606239,1720578735521,-500.0,0.00014048,2]
[331606240,1720578735530,-2329.47,0.00014048,2]
[331606241,1720578735539,-500.0,0.00014048,2]
[331606242,1720578735549,-500.0,0.00014048,2]
[331606243,1720578735558,-3968.07,0.00014048,2]
[331606244,1720578735568,-677.11,0.00014048,2]
[331606245,1720578735578,-522.82,0.00014048,2]
[331606246,1720578735587,-500.0,0.00014048,2]
[331606247,1720578735597,-635.38,0.00014048,2]
[331606248,1720578735606,-7415.51,0.00014048,2]
[331606249,1720578735616,-3610.31,0.00014048,2]
[331606250,1720578735625,-663.26,0.00014048,2]
[331606251,1720578735633,-2867.15,0.00014048,2]
[331606252,1720578735642,-16890.74,0.00014048,2]
[331606253,1720578735651,-500.0,0.00014048,2]
[331606254,1720578735660,-500.0,0.00014048,2]
[331606255,1720578735669,-1875.4,0.00014048,2]
[331606256,1720578735679,-500.0,0.00014048,2]
[331606257,1720578735688,-551.8,0.00014048,2]
[331606258,1720578735697,-4077.31,0.00014048,2]
[331606259,1720578735708,-3530.8,0.00014048,2]
[331606260,1720578735718,-3028.89,0.00014048,2]
[331606261,1720578735727,-1218.44,0.00014048,2]
[331606262,1720578735737,-10810.32,0.00014048,2]
[331606263,1720578735747,-500.0,0.00014048,2]
[331606264,1720578735756,-500.0,0.00014048,2]
[331606265,1720578735765,-1431.77,0.00014048,2]
[331606266,1720578735775,-2505.49,0.00014048,2]
[331606267,1720578735784,-19271.94,0.00014048,2]
[331606268,1720578735793,-500.0,0.00014048,2]
[331606269,1720578735803,-1457.6,0.00014048,2]
[331606270,1720578735812,-500.0,0.00014048,2]
[331606271,1720578735822,-500.0,0.00014048,2]
[331606272,1720578735831,-500.0,0.00014048,2]
[331606273,1720578735840,-2780.88,0.00014048,2]
[331606274,1720578735850,-500.0,0.00014048,2]
[331606275,1720578735859,-2781.87,0.00014048,2]
[331606276,1720578735870,-500.0,0.00014048,2]
[331606277,1720578735881,-500.0,0.00014048,2]
[331606278,1720578735891,-6872.83,0.00014048,2]
[331606279,1720578735900,-500.0,0.00014048,2]
[331606280,1720578735909,-2366.06,0.00014048,2]
[331606281,1720578735919,-500.0,0.00014048,2]
[331606282,1720578735928,-990.71,0.00014048,2]
[331606283,1720578735937,-500.0,0.00014048,2]
[331606284,1720578735947,-4065.4,0.00014048,2]
[331606285,1720578735957,-500.0,0.00014048,2]
[331606286,1720578735966,-1107.57,0.00014048,2]
[331606287,1720578735976,-1390.44,0.00014048,2]
[331606288,1720578735985,-3490.15,0.00014048,2]
[331606289,1720578735994,-3006.98,0.00014048,2]
[331606290,1720578736004,-852.1,0.00014048,2]
[331606291,1720578736014,-500.0,0.00014048,2]
[331606292,1720578736023,-3483.06,0.00014048,2]
[331606293,1720578736032,-4468.39,0.00014048,2]
[331606294,1720578736042,-1855.26,0.00014048,2]
[331606295,1720578736051,-500.0,0.00014048,2]
[331606296,1720578736060,-602.02,0.00014048,2]
[331606297,1720578736070,-882.44,0.00014048,2]
[331606298,1720578736080,-583.01,0.00014048,2]
[331606299,1720578736089,-500.0,0.00014048,2]
[331606300,1720578736099,-8876.2,0.00014048,2]
[331606301,1720578736108,-500.0,0.00014048,2]
[331606302,1720578736119,-934.47,0.00014048,2]
[331606303,1720578736128,-2141.19,0.00014048,2]
[331606304,1720578736137,-500.0,0.00014048,2]
[331606305,1720578736146,-903.0,0.00014048,2]
[331606306,1720578736155,-5147.73,0.00014048,2]
[331606307,1720578736164,-954.89,0.00014048,2]
[331606308,1720578736172,-500.0,0.00014048,2]
[331606309,1720578736182,-500.0,0.00014048,2]
[331606310,1720578736192,-3131.64,0.00014048,2]
[331606311,1720578736201,-500.0,0.00014048,2]
[331606312,1720578736211,-500.0,0.00014048,2]
[331606313,1720578736219,-1557.06,0.00014048,2]
[331606314,1720578736229,-500.0,0.00014048,2]
[331606315,1720578736238,-3889.37,0.00014048,2]
[331606316,1720578736247,-500.0,0.00014048,2]
[331606317,1720578736257,-577.12,0.00014048,2]
[331606318,1720578736268,-500.0,0.00014048,2]
[331606319,1720578736278,-456.99518516,0.00014048,2]
[331606320,1720578736286,-1743.94,0.00014048,2]
[331606321,1720578736295,-500.0,0.00014048,2]
[331606322,1720578736305,-500.0,0.00014048,2]
[331606323,1720578736314,-614.68,0.00014048,2]
[331606324,1720578736323,-8950.3,0.00014048,2]
[331606325,1720578736332,-538.39,0.00014048,2]
[331606326,1720578736342,-1018.29,0.00014048,2]
[331606327,1720578736351,-500.0,0.00014048,2]
[331606328,1720578736360,-1398.7,0.00014048,2]
[331606329,1720578736371,-500.0,0.00014048,2]
[331606330,1720578736379,-500.0,0.00014048,2]
[331606331,1720578736391,-2037.04,0.00014048,2]
[331606332,1720578736400,-1508.21,0.00014048,2]
[331606333,1720578736410,-2377.38,0.00014048,2]
[331606334,1720578736419,-2534.53,0.00014048,2]
[331606335,1720578736428,-2872.14,0.00014048,2]
[331606336,1720578736437,-2027.01,0.00014048,2]
[331606337,1720578736446,-500.0,0.00014048,2]
[331606338,1720578736454,-4263.38,0.00014048,2]
[331606339,1720578736464,-1232.23,0.00014048,2]
[331606340,1720578736473,-796.28,0.00014048,2]
[331606341,1720578736482,-500.0,0.00014048,2]
[331606342,1720578736492,-3049.92,0.00014048,2]
[331606343,1720578736502,-2821.53,0.00014048,2]
[331606344,1720578736511,-3249.13,0.00014048,2]
[331606345,1720578736520,-4199.56,0.00014048,2]
[331606346,1720578736529,-2500.98,0.00014048,2]
[331606347,1720578736538,-503.48150827,0.00014048,2]
[331606348,1720578736548,-805.78,0.00014048,2]
[331606349,1720578736557,-500.0,0.00014048,2]
[331606350,1720578736566,-578.13,0.00014048,2]
[331606351,1720578736575,-500.0,0.00014048,2]
[331606352,1720578736585,-500.0,0.00014048,2]
[331606353,1720578736595,-2527.73,0.00014048,2]
[331606354,1720578736604,-976.94,0.00014048,2]
[331606355,1720578736615,-500.0,0.00014048,2]
[331606356,1720578736625,-912.7,0.00014048,2]
[331606357,1720578736634,-2477.3,0.00014048,2]
[331606358,1720578736644,-500.0,0.00014048,2]
[331606359,1720578736653,-2257.18,0.00014048,2]
[331606360,1720578736663,-628.03,0.00014048,2]
[331606361,1720578736672,-500.0,0.00014048,2]
[331606362,1720578736682,-3416.97,0.00014048,2]
[331606363,1720578736691,-706.93,0.00014048,2]
[331606364,1720578736701,-3448.23,0.00014048,2]
[331606365,1720578736710,-1232.81,0.00014048,2]
[331606366,1720578736720,-500.0,0.00014048,2]
[331606367,1720578736729,-2259.25,0.00014048,2]
[331606368,1720578736739,-2894.3,0.00014048,2]
[331606369,1720578736748,-500.0,0.00014048,2]
[331606370,1720578736758,-500.0,0.00014048,2]
[331606371,1720578736768,-500.0,0.00014048,2]
[331606372,1720578736777,-1929.12,0.00014048,2]
[331606373,1720578736788,-3384.27,0.00014048,2]
[331606374,1720578736796,-500.0,0.00014048,2]
[331606375,1720578736805,-500.0,0.00014048,2]
[331606376,1720578736815,-500.0,0.00014048,2]
[331606377,1720578736824,-500.0,0.00014048,2]
[331606378,1720578736833,-2196.93,0.00014048,2]
[331606379,1720578736842,-654.33,0.00014048,2]
[331606380,1720578736852,-500.0,0.00014048,2]
[331606381,1720578736862,-1229.65,0.00014048,2]
[331606382,1720578736875,-1728.08,0.00014048,2]
[331606383,1720578736885,-433.48761225,0.00014048,2]
[331606384,1720578736896,-500.0,0.00014048,2]
[331606385,1720578736906,-1210.93,0.00014048,2]
[331606386,1720578736915,-500.0,0.00014048,2]
[331606387,1720578736924,-500.0,0.00014048,2]
[331606388,1720578736934,-903.93,0.00014048,2]
[331606389,1720578736944,-1238.02,0.00014048,2]
[331606390,1720578736953,-500.0,0.00014048,2]
[331606391,1720578736963,-1289.3,0.00014048,2]
[331606392,1720578736972,-1330.94,0.00014048,2]
[331606393,1720578736981,-500.0,0.00014048,2]
[331606394,1720578736990,-500.0,0.00014048,2]
[331606395,1720578736999,-1469.74,0.00014048,2]
[331606396,1720578737009,-962.6,0.00014048,2]
[331606397,1720578737018,-2167.98,0.00014048,2]
[331606398,1720578737028,-2623.08,0.00014048,2]
[331606399,1720578737038,-4719.0,0.00014048,2]
[331606400,1720578737047,-2704.83,0.00014048,2]
[331606401,1720578737057,-582.73,0.00014048,2]
[331606402,1720578737066,-364.54602919,0.00014048,2]
[331606403,1720578737076,-500.0,0.00014048,2]
[331606404,1720578737085,-500.0,0.00014048,2]
[331606405,1720578737095,-500.0,0.00014048,2]
[331606406,1720578737104,-500.0,0.00014048,2]
[331606407,1720578737113,-4118.25,0.00014048,2]
[331606408,1720578737123,-500.0,0.00014048,2]
[331606409,1720578737132,-1019.09,0.00014048,2]
[331606410,1720578737143,-500.0,0.00014048,2]
[331606411,1720578737152,-4998.81,0.00014048,2]
[331606412,1720578737162,-1239.67,0.00014048,2]
[331606413,1720578737171,-363.10341085,0.00014048,2]
[331606414,1720578737181,-500.0,0.00014048,2]
[331606415,1720578737191,-3378.14,0.00014048,2]
[331606416,1720578737200,-864.0,0.00014048,2]
[331606417,1720578737210,-2524.16,0.00014048,2]
[331606418,1720578737220,-500.0,0.00014048,2]
[331606419,1720578737229,-1140.18,0.00014048,2]
[331606420,1720578737239,-1566.26,0.00014048,2]
[331606421,1720578737249,-500.0,0.00014048,2]
[331606422,1720578737258,-2247.97,0.00014048,2]
[331606423,1720578737268,-1541.81,0.00014048,2]
[331606424,1720578737277,-1668.28,0.00014048,2]
[331606425,1720578737286,-655.24,0.00014048,2]
[331606426,1720578737296,-500.0,0.00014048,2]
[331606427,1720578737305,-500.0,0.00014048,2]
[331606428,1720578737314,-854.28,0.00014048,2]
[331606429,1720578737324,-3977.48,0.00014048,2]
[331606430,1720578737333,-673.97,0.00014048,2]
[331606431,1720578737343,-500.0,0.00014048,2]
[331606432,1720578737352,-2144.39,0.00014048,2]
[331606433,1720578737362,-500.0,0.00014048,2]
[331606434,1720578737372,-1226.77,0.00014048,2]
[331606435,1720578737382,-2920.14,0.00014048,2]
[331606436,1720578737391,-500.0,0.00014048,2]
[331606437,1720578737400,-4020.96,0.00014048,2]
[331606438,1720578737409,-500.0,0.00014048,2]
[331606439,1720578737419,-1056.97,0.00014048,2]
[331606440,1720578737428,-764.37,0.00014048,2]
[331606441,1720578737437,-156.44349107,0.00014048,2]
[331606442,1720578737446,-547.38,0.00014048,2]
[331606443,1720578737456,-857.73,0.00014048,2]
[331606444,1720578737465,-1638.84,0.00014048,2]
[331606445,1720578737475,-1467.22,0.00014048,2]
[331606446,1720578737484,-655.77,0.00014048,2]
[331606447,1720578737493,-1834.97,0.00014048,2]
[331606448,1720578737502,-500.0,0.00014048,2]
[331606449,1720578737512,-3134.08,0.00014048,2]
[331606450,1720578737521,-889.54,0.00014048,2]
[331606451,1720578737530,-593.79,0.00014048,2]
[331606452,1720578737539,-1457.4,0.00014048,2]
[331606453,1720578737548,-835.98,0.00014048,2]
[331606454,1720578737559,-500.0,0.00014048,2]
[331606455,1720578737568,-661.66,0.00014048,2]
[331606456,1720578737577,-500.0,0.00014048,2]
[331606457,1720578737586,-2100.02,0.00014048,2]
[331606458,1720578737595,-500.0,0.00014048,2]
[331606459,1720578737605,-720.29,0.00014048,2]
[331606460,1720578737616,-1346.39,0.00014048,2]
[331606461,1720578737625,-550.66,0.00014048,2]
[331606462,1720578737633,-1127.85,0.00014048,2]
[331606463,1720578737642,-3512.43,0.00014048,2]
[331606464,1720578737651,-500.0,0.00014048,2]
[331606465,1720578737661,-1483.16,0.00014048,2]
[331606466,1720578737671,-500.0,0.00014048,2]
[331606467,1720578737680,-550.74275783,0.00014048,2]
[331606468,1720578737823,-6244.58,0.00014048,2]
[331606469,1720578737834,-2849.79,0.00014048,2]
[331606470,1720578737844,-1706.17,0.00014048,2]
[331606471,1720578737853,-1239.0,0.00014048,2]
[331606472,1720578737863,-500.0,0.00014048,2]
[331606473,1720578737874,-500.0,0.00014048,2]
[331606474,1720578737885,-500.0,0.00014048,2]
[331606475,1720578737895,-500.0,0.00014048,2]
[331606476,1720578737904,-567.1,0.00014048,2]
[331606477,1720578737913,-1467.17,0.00014048,2]
[331606478,1720578737923,-500.0,0.00014048,2]
[331606479,1720578737933,-520.91,0.00014048,2]
[331606480,1720578737943,-3650.73,0.00014048,2]
[331606481,1720578737953,-1245.43,0.00014048,2]
[331606482,1720578737962,-500.0,0.00014048,2]
[331606483,1720578737972,-500.0,0.00014048,2]
[331606484,1720578737982,-500.0,0.00014048,2]
[331606485,1720578737992,-657.91,0.00014048,2]
[331606486,1720578738002,-500.0,0.00014048,2]
[331606487,1720578738011,-1230.11,0.00014048,2]
[331606488,1720578738021,-1858.66,0.00014048,2]
[331606489,1720578738030,-500.0,0.00014048,2]
[331606490,1720578738040,-3451.64,0.00014048,2]
[331606491,1720578738049,-1741.78,0.00014048,2]
[331606492,1720578738058,-714.23,0.00014048,2]
[331606493,1720578738067,-500.0,0.00014048,2]
[331606494,1720578738077,-927.35,0.00014048,2]
[331606495,1720578738086,-500.0,0.00014048,2]
[331606496,1720578738095,-502.18372977,0.00014048,2]
[331606497,1720578738104,-5993.12,0.00014048,2]
[331606498,1720578738115,-500.0,0.00014048,2]
[331606499,1720578738125,-968.04,0.00014048,2]
[331606500,1720578738134,-917.99,0.00014048,2]
[331606501,1720578738145,-500.0,0.00014048,2]
[331606502,1720578738155,-922.38,0.00014048,2]
[331606503,1720578738165,-2313.53,0.00014048,2]
[331606504,1720578738174,-2591.74,0.00014048,2]
[331606505,1720578738183,-500.0,0.00014048,2]
[331606506,1720578738192,-503.82,0.00014048,2]
[331606507,1720578738202,-836.08,0.00014048,2]
[331606508,1720578738211,-500.0,0.00014048,2]
[331606509,1720578738221,-844.97,0.00014048,2]
[331606510,1720578738231,-3557.48,0.00014048,2]
[331606511,1720578738241,-500.0,0.00014048,2]
[331606512,1720578738250,-3786.27,0.00014048,2]
[331606513,1720578738259,-500.0,0.00014048,2]
[331606514,1720578738269,-500.0,0.00014048,2]
[331606515,1720578738278,-1970.43,0.00014048,2]
[331606516,1720578738288,-3525.51,0.00014048,2]
[331606517,1720578738298,-1296.43,0.00014048,2]
[331606518,1720578738307,-1109.56,0.00014048,2]
[331606519,1720578738317,-838.6,0.00014048,2]
[331606520,1720578738326,-2503.8,0.00014048,2]
[331606521,1720578738336,-3965.45,0.00014048,2]
[331606522,1720578738345,-500.0,0.00014048,2]
[331606523,1720578738355,-609.31,0.00014048,2]
[331606524,1720578738364,-4650.87,0.00014048,2]
[331606525,1720578738374,-500.0,0.00014048,2]
[331606526,1720578738384,-433.15649837,0.00014048,2]
[331606527,1720578738393,-861.16,0.00014048,2]
[331606528,1720578738403,-1205.83,0.00014048,2]
[331606529,1720578738412,-506.91,0.00014048,2]